[Event "Titled Tuesday Blitz April 12 Late 2022"]
[White "Bilan, Danila"]
[Black "Levin, Anthony"]
[WhiteFideId "24161918"]
[BlackFideId "30940680"]
[WhiteElo "2164"]
[BlackElo "2083"]
[Result "1-0"]
[Round "01"]
[TimeControl "180+1"]
[Date "2022.04.13"]
[WhiteClock "0:00:10"]
[BlackClock "0:00:06"]

1. d4 {[%clk 0:02:59]}  Nf6 {[%clk 0:02:59]} 2. Nf3 {[%clk 0:02:59]}  g6 {[%clk 0:02:59]} 3. Bg5 {[%clk 0:02:57]}  Bg7 {[%clk 0:02:59]} 4. c3 {[%clk 0:02:57]}  O-O {[%clk 0:02:58]} 5. Nbd2 {[%clk 0:02:57]}  d5 {[%clk 0:02:58]} 6. e3 {[%clk 0:02:57]}  Nbd7 {[%clk 0:02:56]} 7. Bd3 {[%clk 0:02:57]}  b6 {[%clk 0:02:56]} 8. e4 {[%clk 0:02:55]}  dxe4 {[%clk 0:02:55]} 9. Nxe4 {[%clk 0:02:55]}  Bb7 {[%clk 0:02:55]} 10. Qc2 {[%clk 0:02:55]}  c5 {[%clk 0:02:47]} 11. O-O {[%clk 0:02:47]}  cxd4 {[%clk 0:02:43]} 12. Nxd4 {[%clk 0:02:43]}  Nxe4 {[%clk 0:02:15]} 13. Bxe4 {[%clk 0:02:43]}  Bxe4 {[%clk 0:02:16]} 14. Qxe4 {[%clk 0:02:42]}  Nf6 {[%clk 0:02:17]} 15. Qh4 {[%clk 0:02:06]}  Qd5 {[%clk 0:01:54]} 16. Rfe1 {[%clk 0:01:57]}  Rfe8 {[%clk 0:01:05]} 17. a4 {[%clk 0:01:56]}  a6 {[%clk 0:00:38]} 18. Re2 {[%clk 0:01:43]}  Qd6 {[%clk 0:00:30]} 19. Rae1 {[%clk 0:01:37]}  e5 {[%clk 0:00:29]} 20. Nf3 {[%clk 0:01:11]}  Nd5 {[%clk 0:00:29]} 21. g3 {[%clk 0:00:58]}  f6 {[%clk 0:00:16]} 22. Bh6 {[%clk 0:00:55]}  Rac8 {[%clk 0:00:13]} 23. Rd1 {[%clk 0:00:49]}  Qc6 {[%clk 0:00:09]} 24. Red2 {[%clk 0:00:43]}  Ne7 {[%clk 0:00:07]} 25. Bxg7 {[%clk 0:00:38]}  Nf5 {[%clk 0:00:08]} 26. Qxf6 {[%clk 0:00:22]}  Nxg7 {[%clk 0:00:07]} 27. Qxc6 {[%clk 0:00:17]}  Rxc6 {[%clk 0:00:08]} 28. Rd6 {[%clk 0:00:16]}  Rxd6 {[%clk 0:00:06]} 29. Rxd6 {[%clk 0:00:17]}  e4 {[%clk 0:00:07]} 30. Nd4 {[%clk 0:00:15]}  b5 {[%clk 0:00:06]} 31. Rxa6 {[%clk 0:00:15]}  b4 {[%clk 0:00:05]} 32. cxb4 {[%clk 0:00:14]}  e3 {[%clk 0:00:06]} 33. fxe3 {[%clk 0:00:13]}  Rxe3 {[%clk 0:00:07]} 34. Rc6 {[%clk 0:00:09]}  Rd3 {[%clk 0:00:06]} 35. Ne6 {[%clk 0:00:09]}  Nf5 {[%clk 0:00:07]} 36. Nf4 {[%clk 0:00:08]}  Rd1+ {[%clk 0:00:07]} 37. Kg2 {[%clk 0:00:08]}  Rd2+ {[%clk 0:00:07]} 38. Kf1 {[%clk 0:00:07]}  Rxb2 {[%clk 0:00:08]} 39. b5 {[%clk 0:00:07]}  Ne3+ {[%clk 0:00:09]} 40. Ke1 {[%clk 0:00:08]}  Ra2 {[%clk 0:00:06]} 41. Ra6 {[%clk 0:00:08]}  Rxh2 {[%clk 0:00:05]} 42. b6 {[%clk 0:00:08]}  Rb2 {[%clk 0:00:05]} 43. a5 {[%clk 0:00:08]}  Nc2+ {[%clk 0:00:04]} 44. Kd1 {[%clk 0:00:08]}  Ne3+ {[%clk 0:00:05]} 45. Kc1 {[%clk 0:00:08]}  Rc2+ {[%clk 0:00:06]} 46. Kb1 {[%clk 0:00:09]}  Rc8 {[%clk 0:00:04]} 47. b7 {[%clk 0:00:09]}  Rb8 {[%clk 0:00:05]} 48. Ra8 {[%clk 0:00:10]}  Kf7 {[%clk 0:00:03]} 49. Rxb8 {[%clk 0:00:10]}  Kf6 {[%clk 0:00:04]} 50. Rf8+ {[%clk 0:00:10]}  Ke5 {[%clk 0:00:04]} 51. b8=Q+ {[%clk 0:00:11]}  Kd4 {[%clk 0:00:05]} 52. Qb6+ {[%clk 0:00:11]}  Ke4 {[%clk 0:00:05]} 53. Re8+ {[%clk 0:00:10]}  Kf3 {[%clk 0:00:06]} 54. Qxe3+ {[%clk 0:00:10]} 1-0


[Site "https://www.chess.com"]

[Event "Titled Tuesday Blitz April 12 Late 2022"]
[White "Bordi, Kevin"]
[Black "Minko, Dmitry"]
[WhiteFideId "621862"]
[BlackFideId "24188468"]
[WhiteElo "2771"]
[BlackElo "1928"]
[Result "1/2-1/2"]
[Round "01"]
[TimeControl "180+1"]
[Date "2022.04.13"]
[WhiteClock "0:00:40"]
[BlackClock "0:00:17"]

1. e4 {[%clk 0:03:00]}  e5 {[%clk 0:02:59]} 2. Nf3 {[%clk 0:03:00]}  Nc6 {[%clk 0:02:59]} 3. d4 {[%clk 0:03:01]}  exd4 {[%clk 0:03:00]} 4. Nxd4 {[%clk 0:03:02]}  Bc5 {[%clk 0:02:57]} 5. Be3 {[%clk 0:03:01]}  Qf6 {[%clk 0:02:56]} 6. c3 {[%clk 0:03:02]}  Nge7 {[%clk 0:02:56]} 7. g3 {[%clk 0:03:02]}  h5 {[%clk 0:02:56]} 8. h4 {[%clk 0:03:01]}  d6 {[%clk 0:02:54]} 9. Bg2 {[%clk 0:02:57]}  Bg4 {[%clk 0:02:54]} 10. Qa4 {[%clk 0:02:42]}  O-O {[%clk 0:02:34]} 11. Nd2 {[%clk 0:02:38]}  Rfe8 {[%clk 0:02:04]} 12. f3 {[%clk 0:02:30]}  Bd7 {[%clk 0:02:01]} 13. Qc4 {[%clk 0:02:22]}  Bb6 {[%clk 0:01:50]} 14. O-O-O {[%clk 0:02:19]}  Ng6 {[%clk 0:01:40]} 15. Bg5 {[%clk 0:02:17]}  Qe5 {[%clk 0:01:39]} 16. f4 {[%clk 0:02:03]}  Qc5 {[%clk 0:01:38]} 17. Qxc5 {[%clk 0:02:01]}  Bxc5 {[%clk 0:01:37]} 18. N2b3 {[%clk 0:02:01]}  Bb6 {[%clk 0:01:37]} 19. Rhe1 {[%clk 0:01:58]}  Bg4 {[%clk 0:01:37]} 20. Rd2 {[%clk 0:01:57]}  f6 {[%clk 0:01:37]} 21. f5 {[%clk 0:01:53]}  fxg5 {[%clk 0:01:21]} 22. fxg6 {[%clk 0:01:52]}  gxh4 {[%clk 0:01:16]} 23. gxh4 {[%clk 0:01:53]}  Ne5 {[%clk 0:01:15]} 24. Kc2 {[%clk 0:01:40]}  Nxg6 {[%clk 0:01:15]} 25. Bf3 {[%clk 0:01:38]}  Nxh4 {[%clk 0:01:05]} 26. Bxg4 {[%clk 0:01:38]}  hxg4 {[%clk 0:01:06]} 27. Kd3 {[%clk 0:01:27]}  Nf3 {[%clk 0:01:01]} 28. Nxf3 {[%clk 0:01:20]}  gxf3 {[%clk 0:01:02]} 29. Nd4 {[%clk 0:01:21]}  Rf8 {[%clk 0:00:58]} 30. Rf1 {[%clk 0:01:16]}  Rf6 {[%clk 0:00:52]} 31. Nf5 {[%clk 0:01:13]}  Re8 {[%clk 0:00:43]} 32. Rxf3 {[%clk 0:01:11]}  g6 {[%clk 0:00:38]} 33. Ne7+ {[%clk 0:00:58]}  Kg7 {[%clk 0:00:36]} 34. Rxf6 {[%clk 0:00:59]}  Kxf6 {[%clk 0:00:35]} 35. Nd5+ {[%clk 0:01:00]}  Ke5 {[%clk 0:00:29]} 36. Rg2 {[%clk 0:00:59]}  Rg8 {[%clk 0:00:25]} 37. Ne7 {[%clk 0:00:50]}  Rg7 {[%clk 0:00:25]} 38. Nxg6+ {[%clk 0:00:49]}  Kf6 {[%clk 0:00:24]} 39. Nf4 {[%clk 0:00:50]}  Rxg2 {[%clk 0:00:25]} 40. Nxg2 {[%clk 0:00:51]}  Ke5 {[%clk 0:00:25]} 41. Ne1 {[%clk 0:00:51]}  d5 {[%clk 0:00:24]} 42. Nf3+ {[%clk 0:00:52]}  Kf4 {[%clk 0:00:24]} 43. Nd2 {[%clk 0:00:50]}  dxe4+ {[%clk 0:00:22]} 44. Nxe4 {[%clk 0:00:51]}  Ke5 {[%clk 0:00:22]} 45. b4 {[%clk 0:00:49]}  Bg1 {[%clk 0:00:22]} 46. Nd2 {[%clk 0:00:49]}  Kd6 {[%clk 0:00:21]} 47. Kc4 {[%clk 0:00:46]}  c6 {[%clk 0:00:20]} 48. a4 {[%clk 0:00:46]}  Kc7 {[%clk 0:00:21]} 49. Nf3 {[%clk 0:00:46]}  Bf2 {[%clk 0:00:21]} 50. Ng5 {[%clk 0:00:46]}  Bg3 {[%clk 0:00:21]} 51. Kd4 {[%clk 0:00:44]}  Bf2+ {[%clk 0:00:21]} 52. Kd3 {[%clk 0:00:43]}  Be1 {[%clk 0:00:22]} 53. Nf3 {[%clk 0:00:42]}  Bg3 {[%clk 0:00:21]} 54. Nd4 {[%clk 0:00:42]}  b6 {[%clk 0:00:21]} 55. b5 {[%clk 0:00:42]}  cxb5 {[%clk 0:00:20]} 56. axb5 {[%clk 0:00:42]}  Kb7 {[%clk 0:00:21]} 57. Nf5 {[%clk 0:00:40]}  Bh2 {[%clk 0:00:21]} 58. Kc4 {[%clk 0:00:39]}  a6 {[%clk 0:00:21]} 59. Ne7 {[%clk 0:00:38]}  Be5 {[%clk 0:00:19]} 60. Nc6 {[%clk 0:00:37]}  axb5+ {[%clk 0:00:18]} 61. Kxb5 {[%clk 0:00:38]}  Bxc3 {[%clk 0:00:19]} 62. Nd8+ {[%clk 0:00:38]}  Kc7 {[%clk 0:00:17]} 63. Ne6+ {[%clk 0:00:39]}  Kb7 {[%clk 0:00:17]} 64. Nc5+ {[%clk 0:00:39]}  bxc5 {[%clk 0:00:17]} 65. Kxc5 {[%clk 0:00:40]} 1/2-1/2


[Site "https://www.chess.com"]

[Event "Titled Tuesday Blitz April 12 Late 2022"]
[White "Cagara, Paulina"]
[Black "Iskusnyh, Sergei"]
[WhiteFideId "1124870"]
[BlackFideId "4120027"]
[WhiteElo "1780"]
[BlackElo "2492"]
[Result "0-1"]
[Round "01"]
[TimeControl "180+1"]
[Date "2022.04.13"]
[WhiteClock "0:00:32"]
[BlackClock "0:00:14"]

1. e4 {[%clk 0:02:59]}  e6 {[%clk 0:02:59]} 2. d4 {[%clk 0:02:58]}  d5 {[%clk 0:02:59]} 3. Nc3 {[%clk 0:02:57]}  Nf6 {[%clk 0:02:59]} 4. e5 {[%clk 0:02:57]}  Nfd7 {[%clk 0:02:59]} 5. f4 {[%clk 0:02:56]}  c5 {[%clk 0:02:59]} 6. Nf3 {[%clk 0:02:56]}  Be7 {[%clk 0:02:56]} 7. Be3 {[%clk 0:02:55]}  O-O {[%clk 0:02:55]} 8. Bd3 {[%clk 0:02:54]}  Nc6 {[%clk 0:02:31]} 9. O-O {[%clk 0:02:51]}  f5 {[%clk 0:02:27]} 10. exf6 {[%clk 0:02:50]}  Nxf6 {[%clk 0:02:25]} 11. Ne5 {[%clk 0:02:28]}  cxd4 {[%clk 0:02:11]} 12. Nxc6 {[%clk 0:02:28]}  bxc6 {[%clk 0:02:11]} 13. Bxd4 {[%clk 0:02:28]}  c5 {[%clk 0:02:00]} 14. Be5 {[%clk 0:02:27]}  Bb7 {[%clk 0:01:44]} 15. Nb5 {[%clk 0:02:21]}  Qb6 {[%clk 0:01:36]} 16. Kh1 {[%clk 0:02:19]}  c4 {[%clk 0:01:31]} 17. Bxf6 {[%clk 0:01:59]}  Bxf6 {[%clk 0:01:14]} 18. Bxh7+ {[%clk 0:01:53]}  Kxh7 {[%clk 0:01:12]} 19. Nc3 {[%clk 0:01:49]}  Qxb2 {[%clk 0:01:05]} 20. Rb1 {[%clk 0:01:47]}  Qxc3 {[%clk 0:00:59]} 21. Rxb7 {[%clk 0:01:43]}  Rab8 {[%clk 0:00:48]} 22. Rxa7 {[%clk 0:01:42]}  Qe3 {[%clk 0:00:41]} 23. Qh5+ {[%clk 0:01:35]}  Kg8 {[%clk 0:00:40]} 24. Rd7 {[%clk 0:01:30]}  Qe4 {[%clk 0:00:35]} 25. f5 {[%clk 0:01:23]}  exf5 {[%clk 0:00:31]} 26. h3 {[%clk 0:01:18]}  Rbe8 {[%clk 0:00:18]} 27. Rd1 {[%clk 0:01:00]}  Re5 {[%clk 0:00:17]} 28. c3 {[%clk 0:00:52]}  f4 {[%clk 0:00:16]} 29. Qg4 {[%clk 0:00:51]}  Rg5 {[%clk 0:00:16]} 30. Qf3 {[%clk 0:00:47]}  Qxf3 {[%clk 0:00:16]} 31. gxf3 {[%clk 0:00:48]}  Rg3 {[%clk 0:00:16]} 32. Kh2 {[%clk 0:00:47]}  Rxf3 {[%clk 0:00:16]} 33. R7xd5 {[%clk 0:00:47]}  Rxc3 {[%clk 0:00:16]} 34. a4 {[%clk 0:00:45]}  Re8 {[%clk 0:00:17]} 35. R1d2 {[%clk 0:00:44]}  Ree3 {[%clk 0:00:16]} 36. Rh5 {[%clk 0:00:42]}  Ra3 {[%clk 0:00:13]} 37. Rc2 {[%clk 0:00:40]}  c3 {[%clk 0:00:14]} 38. Rc5 {[%clk 0:00:36]}  Rxa4 {[%clk 0:00:14]} 39. Rc8+ {[%clk 0:00:35]}  Kh7 {[%clk 0:00:13]} 40. Rc7 {[%clk 0:00:34]}  Rd4 {[%clk 0:00:13]} 41. Rf2 {[%clk 0:00:34]}  Rd2 {[%clk 0:00:13]} 42. Kg2 {[%clk 0:00:32]}  Ree2 {[%clk 0:00:12]} 43. Rxe2 {[%clk 0:00:31]}  Rxe2+ {[%clk 0:00:13]} 44. Kf3 {[%clk 0:00:32]}  Re3+ {[%clk 0:00:13]} 45. Kxf4 {[%clk 0:00:32]}  Be5+ {[%clk 0:00:14]} 46. Kxe3 {[%clk 0:00:32]}  Bxc7 {[%clk 0:00:14]} 47. Kd3 {[%clk 0:00:32]}  Be5 {[%clk 0:00:14]} 0-1


[Site "https://www.chess.com"]

[Event "Titled Tuesday Blitz April 12 Late 2022"]
[White "Chyngyz, Sultai"]
[Black "Wieczorek, Oskar"]
[WhiteFideId "13803158"]
[BlackFideId "1133950"]
[WhiteElo "1365"]
[BlackElo "2319"]
[Result "0-1"]
[Round "01"]
[TimeControl "180+1"]
[Date "2022.04.13"]
[WhiteClock "0:01:24"]
[BlackClock "0:01:03"]

1. e4 {[%clk 0:02:53]}  c5 {[%clk 0:02:59]} 2. Nf3 {[%clk 0:02:52]}  g6 {[%clk 0:03:00]} 3. d4 {[%clk 0:02:49]}  cxd4 {[%clk 0:03:01]} 4. Nxd4 {[%clk 0:02:49]}  Nc6 {[%clk 0:03:01]} 5. c4 {[%clk 0:02:48]}  Nf6 {[%clk 0:03:01]} 6. Nc3 {[%clk 0:02:48]}  d6 {[%clk 0:03:02]} 7. f3 {[%clk 0:02:46]}  Nxd4 {[%clk 0:03:01]} 8. Qxd4 {[%clk 0:02:45]}  Bg7 {[%clk 0:03:02]} 9. Qd1 {[%clk 0:02:42]}  O-O {[%clk 0:03:01]} 10. Be3 {[%clk 0:02:42]}  Be6 {[%clk 0:02:58]} 11. Be2 {[%clk 0:02:41]}  Qa5 {[%clk 0:02:58]} 12. O-O {[%clk 0:02:36]}  Rfc8 {[%clk 0:02:58]} 13. Nd5 {[%clk 0:02:34]}  Nxd5 {[%clk 0:02:59]} 14. cxd5 {[%clk 0:02:32]}  Bd7 {[%clk 0:02:59]} 15. Qb3 {[%clk 0:02:12]}  Ba4 {[%clk 0:02:55]} 16. Qa3 {[%clk 0:02:11]}  Rc2 {[%clk 0:02:48]} 17. Bd1 {[%clk 0:01:52]}  Bxb2 {[%clk 0:02:40]} 18. Qd3 {[%clk 0:01:51]}  Rc3 {[%clk 0:02:36]} 19. Qd2 {[%clk 0:01:51]}  Bxa1 {[%clk 0:02:13]} 20. Bxa4 {[%clk 0:01:47]}  Qxa4 {[%clk 0:02:02]} 21. Rxa1 {[%clk 0:01:47]}  Rc2 {[%clk 0:02:00]} 22. Qd3 {[%clk 0:01:44]}  Qc4 {[%clk 0:01:58]} 23. Qxc4 {[%clk 0:01:37]}  Rxc4 {[%clk 0:01:59]} 24. Rb1 {[%clk 0:01:38]}  b6 {[%clk 0:01:59]} 25. Rb2 {[%clk 0:01:38]}  Rac8 {[%clk 0:01:59]} 26. h3 {[%clk 0:01:38]}  Ra4 {[%clk 0:02:00]} 27. Kh2 {[%clk 0:01:38]}  f5 {[%clk 0:02:00]} 28. exf5 {[%clk 0:01:37]}  gxf5 {[%clk 0:02:01]} 29. Bg5 {[%clk 0:01:37]}  Kf7 {[%clk 0:02:01]} 30. Re2 {[%clk 0:01:37]}  Rc7 {[%clk 0:02:02]} 31. Kg3 {[%clk 0:01:35]}  Rd4 {[%clk 0:02:01]} 32. f4 {[%clk 0:01:29]}  Rxd5 {[%clk 0:02:00]} 33. Kh4 {[%clk 0:01:29]}  Rdc5 {[%clk 0:01:43]} 34. Kh5 {[%clk 0:01:28]}  Rc2 {[%clk 0:01:43]} 35. Re3 {[%clk 0:01:27]}  Rxg2 {[%clk 0:01:42]} 36. Kh6 {[%clk 0:01:27]}  d5 {[%clk 0:01:35]} 37. Kxh7 {[%clk 0:01:27]}  d4 {[%clk 0:01:34]} 38. Re5 {[%clk 0:01:26]}  e6 {[%clk 0:01:35]} 39. h4 {[%clk 0:01:25]}  Rd7 {[%clk 0:01:34]} 40. h5 {[%clk 0:01:24]}  d3 {[%clk 0:01:35]} 41. Re1 {[%clk 0:01:21]}  d2 {[%clk 0:01:35]} 42. Rd1 {[%clk 0:01:21]}  Rf2 {[%clk 0:01:35]} 43. a3 {[%clk 0:01:21]}  Re2 {[%clk 0:01:35]} 44. a4 {[%clk 0:01:19]}  Re1 {[%clk 0:01:35]} 45. Rxd2 {[%clk 0:01:19]}  Rxd2 {[%clk 0:01:35]} 46. a5 {[%clk 0:01:20]}  bxa5 {[%clk 0:01:35]} 47. Bh6 {[%clk 0:01:18]}  Rh2 {[%clk 0:01:35]} 48. Bg5 {[%clk 0:01:16]}  Rxh5+ {[%clk 0:01:35]} 49. Bh6 {[%clk 0:01:16]}  Rxh6+ {[%clk 0:01:35]} 50. Kxh6 {[%clk 0:01:16]}  Re4 {[%clk 0:01:36]} 51. Kg5 {[%clk 0:01:15]}  a4 {[%clk 0:01:37]} 52. Kh6 {[%clk 0:01:15]}  a3 {[%clk 0:01:38]} 53. Kh7 {[%clk 0:01:16]}  a2 {[%clk 0:01:39]} 54. Kh6 {[%clk 0:01:16]}  a1=N {[%clk 0:01:39]} 55. Kh7 {[%clk 0:01:17]}  a5 {[%clk 0:01:39]} 56. Kh6 {[%clk 0:01:17]}  a4 {[%clk 0:01:40]} 57. Kg5 {[%clk 0:01:18]}  a3 {[%clk 0:01:41]} 58. Kh4 {[%clk 0:01:19]}  Nb3 {[%clk 0:01:42]} 59. Kg3 {[%clk 0:01:20]}  a2 {[%clk 0:01:43]} 60. Kf3 {[%clk 0:01:21]}  a1=B {[%clk 0:01:42]} 61. Kf2 {[%clk 0:01:21]}  Rxf4+ {[%clk 0:01:42]} 62. Kg3 {[%clk 0:01:22]}  Rf3+ {[%clk 0:01:43]} 63. Kxf3 {[%clk 0:01:22]}  Kf6 {[%clk 0:01:43]} 64. Kf4 {[%clk 0:01:22]}  e5+ {[%clk 0:01:44]} 65. Ke3 {[%clk 0:01:23]}  e4 {[%clk 0:01:44]} 66. Kf4 {[%clk 0:01:23]}  Be5+ {[%clk 0:01:45]} 67. Ke3 {[%clk 0:01:24]}  Na5 {[%clk 0:01:45]} 68. Kf2 {[%clk 0:01:24]}  f4 {[%clk 0:01:46]} 69. Ke2 {[%clk 0:01:23]}  Kf5 {[%clk 0:01:47]} 70. Kf1 {[%clk 0:01:24]}  Kg4 {[%clk 0:01:47]} 71. Kf2 {[%clk 0:01:25]}  e3+ {[%clk 0:01:47]} 72. Ke2 {[%clk 0:01:26]}  Nc6 {[%clk 0:01:47]} 73. Kd3 {[%clk 0:01:27]}  Bh8 {[%clk 0:01:46]} 74. Ke4 {[%clk 0:01:28]}  Nd4 {[%clk 0:01:46]} 75. Kd5 {[%clk 0:01:29]}  e2 {[%clk 0:01:46]} 76. Kc4 {[%clk 0:01:25]}  e1=R {[%clk 0:01:46]} 77. Kd3 {[%clk 0:01:26]}  Rh1 {[%clk 0:01:46]} 78. Ke4 {[%clk 0:01:26]}  f3 {[%clk 0:01:45]} 79. Kd3 {[%clk 0:01:26]}  f2 {[%clk 0:01:46]} 80. Ke3 {[%clk 0:01:27]}  f1=Q {[%clk 0:01:45]} 81. Kd2 {[%clk 0:01:27]}  Qd3+ {[%clk 0:01:45]} 82. Kxd3 {[%clk 0:01:27]}  Kf3 {[%clk 0:01:45]} 83. Kd2 {[%clk 0:01:27]}  Ke4 {[%clk 0:01:39]} 84. Kc3 {[%clk 0:01:26]}  Ke3 {[%clk 0:01:40]} 85. Kc4 {[%clk 0:01:27]}  Rc1+ {[%clk 0:01:40]} 86. Kd5 {[%clk 0:01:28]}  Kd3 {[%clk 0:01:39]} 87. Kd6 {[%clk 0:01:27]}  Ke4 {[%clk 0:01:40]} 88. Ke7 {[%clk 0:01:27]}  Ke5 {[%clk 0:01:40]} 89. Kf7 {[%clk 0:01:27]}  Rc7+ {[%clk 0:01:38]} 90. Kg6 {[%clk 0:01:27]}  Bf6 {[%clk 0:01:37]} 91. Kh5 {[%clk 0:01:27]}  Kf5 {[%clk 0:01:36]} 92. Kh6 {[%clk 0:01:27]}  Nf3 {[%clk 0:01:36]} 93. Kh5 {[%clk 0:01:27]}  Ng5 {[%clk 0:01:31]} 94. Kh4 {[%clk 0:01:27]}  Be5 {[%clk 0:01:31]} 95. Kh5 {[%clk 0:01:26]}  Rg7 {[%clk 0:01:17]} 96. Kh4 {[%clk 0:01:25]}  Bb8 {[%clk 0:01:03]} 97. Kh5 {[%clk 0:01:25]}  Rg6 {[%clk 0:01:01]} 98. Kh4 {[%clk 0:01:24]}  Bd6 {[%clk 0:01:01]} 99. Kh5 {[%clk 0:01:24]}  Rh6+ {[%clk 0:01:00]} 100. Kxh6 {[%clk 0:01:24]}  Be5 {[%clk 0:01:01]} 101. Kh5 {[%clk 0:01:24]}  Bg3 {[%clk 0:01:01]} 102. Kh6 {[%clk 0:01:24]}  Ne6 {[%clk 0:01:02]} 103. Kh5 {[%clk 0:01:23]}  Ng7+ {[%clk 0:01:03]} 104. Kh6 {[%clk 0:01:23]}  Kf6 {[%clk 0:01:03]} 105. Kh7 {[%clk 0:01:24]}  Kf7 {[%clk 0:01:04]} 106. Kh6 {[%clk 0:01:24]}  Bf4+ {[%clk 0:01:04]} 107. Kh7 {[%clk 0:01:24]}  Ne6 {[%clk 0:01:02]} 108. Kh8 {[%clk 0:01:24]}  Be3 {[%clk 0:01:02]} 109. Kh7 {[%clk 0:01:24]}  Nf8+ {[%clk 0:01:03]} 0-1


[Site "https://www.chess.com"]

[Event "Titled Tuesday Blitz April 12 Late 2022"]
[White "Constantinou, Peter"]
[Black "Kamsky, Gata"]
[WhiteFideId "413038"]
[BlackFideId "2000024"]
[WhiteElo "2230"]
[BlackElo "2645"]
[Result "0-1"]
[Round "01"]
[TimeControl "180+1"]
[Date "2022.04.12"]
[WhiteClock "0:00:22"]
[BlackClock "0:00:55"]

1. b3 {[%clk 0:02:57]}  d5 {[%clk 0:02:56]} 2. Bb2 {[%clk 0:02:58]}  Bf5 {[%clk 0:02:56]} 3. d3 {[%clk 0:02:53]}  e6 {[%clk 0:02:56]} 4. Nf3 {[%clk 0:02:44]}  Nf6 {[%clk 0:02:56]} 5. Nh4 {[%clk 0:02:41]}  Bg6 {[%clk 0:02:54]} 6. Nxg6 {[%clk 0:02:39]}  hxg6 {[%clk 0:02:54]} 7. g3 {[%clk 0:02:39]}  a5 {[%clk 0:02:53]} 8. a3 {[%clk 0:02:38]}  a4 {[%clk 0:02:51]} 9. b4 {[%clk 0:02:37]}  c5 {[%clk 0:02:52]} 10. bxc5 {[%clk 0:02:37]}  Bxc5 {[%clk 0:02:51]} 11. e3 {[%clk 0:02:38]}  Nbd7 {[%clk 0:02:33]} 12. Nd2 {[%clk 0:02:37]}  Qa5 {[%clk 0:02:25]} 13. Bg2 {[%clk 0:02:33]}  b5 {[%clk 0:02:23]} 14. O-O {[%clk 0:02:31]}  O-O {[%clk 0:02:21]} 15. c4 {[%clk 0:02:29]}  b4 {[%clk 0:02:12]} 16. cxd5 {[%clk 0:02:11]}  exd5 {[%clk 0:02:12]} 17. axb4 {[%clk 0:01:53]}  Bxb4 {[%clk 0:02:11]} 18. Nf3 {[%clk 0:01:52]}  a3 {[%clk 0:02:09]} 19. Bd4 {[%clk 0:01:53]}  Bc3 {[%clk 0:02:00]} 20. Ra2 {[%clk 0:01:41]}  Rfb8 {[%clk 0:01:58]} 21. Bxc3 {[%clk 0:01:39]}  Qxc3 {[%clk 0:01:57]} 22. Qd2 {[%clk 0:01:40]}  Qxd2 {[%clk 0:01:54]} 23. Nxd2 {[%clk 0:01:41]}  Rb2 {[%clk 0:01:52]} 24. Rfa1 {[%clk 0:01:37]}  Rc8 {[%clk 0:01:27]} 25. Nf3 {[%clk 0:01:05]}  Rxa2 {[%clk 0:01:05]} 26. Rxa2 {[%clk 0:01:06]}  Rc3 {[%clk 0:01:05]} 27. Kf1 {[%clk 0:00:27]}  Nc5 {[%clk 0:00:57]} 28. Ke2 {[%clk 0:00:23]}  Nxd3 {[%clk 0:00:55]} 29. Kd2 {[%clk 0:00:22]}  Ne4+ {[%clk 0:00:55]} 0-1


[Site "https://www.chess.com"]

[Event "Titled Tuesday Blitz April 12 Late 2022"]
[White "Dauner, Benedikt"]
[Black "Alekseenko, Kirill"]
[WhiteFideId "16225899"]
[BlackFideId "4135539"]
[WhiteElo "2230"]
[BlackElo "2682"]
[Result "0-1"]
[Round "01"]
[TimeControl "180+1"]
[Date "2022.04.12"]
[WhiteClock "0:00:05"]
[BlackClock "0:00:32"]

1. d4 {[%clk 0:02:59]}  d5 {[%clk 0:03:00]} 2. Nf3 {[%clk 0:02:59]}  Nf6 {[%clk 0:03:00]} 3. c3 {[%clk 0:02:59]}  Bf5 {[%clk 0:02:58]} 4. Qb3 {[%clk 0:02:58]}  Qc8 {[%clk 0:02:59]} 5. Bf4 {[%clk 0:02:56]}  e6 {[%clk 0:02:59]} 6. c4 {[%clk 0:02:52]}  c6 {[%clk 0:02:59]} 7. Nc3 {[%clk 0:02:50]}  Nbd7 {[%clk 0:02:59]} 8. cxd5 {[%clk 0:02:48]}  exd5 {[%clk 0:02:58]} 9. Rc1 {[%clk 0:02:47]}  Be7 {[%clk 0:02:50]} 10. e3 {[%clk 0:02:44]}  O-O {[%clk 0:02:50]} 11. h3 {[%clk 0:02:45]}  Re8 {[%clk 0:02:28]} 12. Be2 {[%clk 0:02:44]}  Nf8 {[%clk 0:02:28]} 13. g4 {[%clk 0:02:19]}  Be4 {[%clk 0:02:23]} 14. g5 {[%clk 0:02:18]}  Nh5 {[%clk 0:02:07]} 15. Nxe4 {[%clk 0:02:13]}  Nxf4 {[%clk 0:01:57]} 16. exf4 {[%clk 0:02:00]}  dxe4 {[%clk 0:01:57]} 17. Ne5 {[%clk 0:01:59]}  Qf5 {[%clk 0:01:43]} 18. Nxf7 {[%clk 0:01:43]}  Qxf7 {[%clk 0:01:41]} 19. Bc4 {[%clk 0:01:41]}  Ne6 {[%clk 0:01:42]} 20. Bxe6 {[%clk 0:01:39]}  Bb4+ {[%clk 0:01:42]} 21. Qxb4 {[%clk 0:01:31]}  Rxe6 {[%clk 0:01:43]} 22. Qd2 {[%clk 0:01:24]}  e3 {[%clk 0:01:43]} 23. fxe3 {[%clk 0:01:19]}  Qxf4 {[%clk 0:01:40]} 24. Rc3 {[%clk 0:01:13]}  Rae8 {[%clk 0:01:38]} 25. Ke2 {[%clk 0:01:09]}  Qxg5 {[%clk 0:01:34]} 26. Re1 {[%clk 0:01:08]}  Qh5+ {[%clk 0:01:28]} 27. Kd3 {[%clk 0:01:04]}  Qxh3 {[%clk 0:01:28]} 28. Kc2 {[%clk 0:01:02]}  Qf5+ {[%clk 0:01:25]} 29. Kc1 {[%clk 0:00:59]}  h5 {[%clk 0:01:24]} 30. Rc5 {[%clk 0:00:58]}  Qf3 {[%clk 0:01:19]} 31. Rg5 {[%clk 0:00:49]}  Rxe3 {[%clk 0:01:06]} 32. Reg1 {[%clk 0:00:49]}  R8e7 {[%clk 0:00:55]} 33. Qb4 {[%clk 0:00:35]}  Qf4 {[%clk 0:00:41]} 34. Kb1 {[%clk 0:00:11]}  Qe4+ {[%clk 0:00:39]} 35. Kc1 {[%clk 0:00:08]}  Re1+ {[%clk 0:00:34]} 36. Rxe1 {[%clk 0:00:08]}  Qxe1+ {[%clk 0:00:35]} 37. Qxe1 {[%clk 0:00:08]}  Rxe1+ {[%clk 0:00:36]} 38. Kd2 {[%clk 0:00:08]}  Rh1 {[%clk 0:00:35]} 39. Kc3 {[%clk 0:00:08]}  h4 {[%clk 0:00:33]} 40. Kc4 {[%clk 0:00:08]}  h3 {[%clk 0:00:29]} 41. Kc5 {[%clk 0:00:03]}  Rc1+ {[%clk 0:00:29]} 42. Kd6 {[%clk 0:00:03]}  h2 {[%clk 0:00:30]} 43. Rh5 {[%clk 0:00:01]}  h1=Q {[%clk 0:00:30]} 44. Rxh1 {[%clk 0:00:01]}  Rxh1 {[%clk 0:00:31]} 45. b4 {[%clk 0:00:02]}  Rh5 {[%clk 0:00:31]} 46. a4 {[%clk 0:00:03]}  Rd5+ {[%clk 0:00:30]} 47. Kc7 {[%clk 0:00:03]}  Rxd4 {[%clk 0:00:31]} 48. Kxb7 {[%clk 0:00:03]}  Rxb4+ {[%clk 0:00:32]} 49. Kxc6 {[%clk 0:00:04]}  Rxa4 {[%clk 0:00:32]} 50. Kb7 {[%clk 0:00:05]}  Rb4+ {[%clk 0:00:32]} 51. Kxa7 {[%clk 0:00:05]}  g5 {[%clk 0:00:32]} 0-1


[Site "https://www.chess.com"]